{"text_format":"1","workbook":"xlsx","n_sheets":2,"sheets":["Introduction","ICPs"],"not_rendered":{"charts":0,"images":1,"macros":1,"external_links":0,"defined_names":0,"comments":0,"pivot_tables":0},"unopened":[],"bounds":{"document_bytes":16777216,"sheet_cells":100000,"rows_first":2000,"rows_last":500,"rows_between":2000,"halvings":0,"cell_chars":16384,"cell_head_chars":4096},"cells_cut":0,"cells_raw":0,"read":"whole","date_system":"1900"}

{"sheet":"Introduction","index":0,"n_rows":19,"n_cols":9,"rows_kept":19,"cut":false,"hidden":false,"merged":[[10,4,11,15],[18,4,18,15],[13,8,14,11],[15,4,16,15]]}
[]
[]
[]
[]
[]
[]
[]
[]
[]
[]
[null,null,null,null,"This is a listing of other connection providers that are active in the UK Power Networks area.  It includes links to their company websites."]
[]
[]
[null,null,null,null,null,null,null,null,"CLICK HERE TO VIEW THE LIST OF ICPS"]
[]
[null,null,null,null," Please note that not all connection providers have opted to appear in this list. A full list is available on the Lloyds Register website"]
[]
[]
[null,null,null,null,"Please click here if you would like your company to be added to the list"]

{"sheet":"ICPs","index":1,"n_rows":93,"n_cols":6,"rows_kept":93,"cut":false,"hidden":false,"merged":[]}
["Rank","Company name",null,"Weblink","ICP Name","Web Link"]
[{"$f":"RANK(C2,$C$2:$C$91)","v":20},"PN Daly",{"$f":"RAND()","v":0.77612883462578419},"http://www.pndaly.co.uk/",{"$f":"OFFSET(A$1,A2,1)","v":"Power On Connections"},{"$f":"HYPERLINK(OFFSET(A$1,A2,3))","v":"http://www.poweronconnections.co.uk"}]
[{"$f":"RANK(C3,$C$2:$C$91)","v":70},"R&D Network Design",0.35605924873324046,"http://www.rdnetworkdesign.co.uk/",{"$f":"OFFSET(A$1,A3,1)","v":"Fusion Utility Networks"},"https://www.fusionutilitynetworks.co.uk/"]
[{"$f":"RANK(C4,$C$2:$C$91)","v":82},"Morrison Utility Connections",0.18974537470184993,"http://www.morrisonuc.com/",{"$f":"OFFSET(A$1,A4,1)","v":"Cable Connections"},"https://cable-connections.co.uk [cable-connections.co.uk]"]
[{"$f":"RANK(C5,$C$2:$C$91)","v":48},"Nationwide Distribution Services",0.54692595396653376,"http://www.ndslimited.co.uk/index.asp","GFL Construction Ltd ","http://www.gfl.uk.com"]
[{"$f":"RANK(C6,$C$2:$C$91)","v":46},"HRP Services",0.57229728912566369,"http://hrpservicesltd.webs.com/","MES Power Engineering","http://www.mes-power.com"]
[{"$f":"RANK(C7,$C$2:$C$91)","v":89},"Freedom Connections",7.1508099749565068E-2,"http://www.freedom-group.co.uk/services/connections","Energi Solutions Limited","https://energisolutions.co.uk/"]
[{"$f":"RANK(C8,$C$2:$C$91)","v":14},"UK Power Solutions ",0.84682045266938921,"http://www.ukpowersolutions.co.uk/","Bouygues Energies & Services","http://www.bouygues-es.co.uk/connections-and-networks "]
[{"$f":"RANK(C9,$C$2:$C$91)","v":60},"Triconnex",0.46036284289843465,"http://www.triconnex.co.uk/about-us","AIS Utilities","http://www.aisutilities.co.uk"]
[{"$f":"RANK(C10,$C$2:$C$91)","v":55},"Metricab Power Engineering",0.49323011189546995,"http://metricab.co.uk/","The Independent Connection Provider ","http://www.TheICP.co.uk"]
[{"$f":"RANK(C11,$C$2:$C$91)","v":27},"Dragon Infrastructure Solutions",0.72200399950553829,"http://www.dragonis.co.uk/","Utility Engineering Solutions ","http://www.utilityengineering.co.uk"]
[{"$f":"RANK(C12,$C$2:$C$91)","v":42},"Power Jointing and Distribution Services",0.61479136512398902,"http://powerjointing.co.uk/ukpn.php","High Voltage Systems & Services","http://www.hvss.uk.com"]
[{"$f":"RANK(C13,$C$2:$C$91)","v":86},"Matrix Networks",0.11261136566725205,"http://www.matrixnetworks.co.uk/","DP Optics Ltd",{"$f":"HYPERLINK(OFFSET(A$1,A13,3))","v":"https://dpogroup.co.uk/"}]
[{"$f":"RANK(C14,$C$2:$C$91)","v":54},"Energetics Networked Energy",0.49505203108388318,"http://www.energetics-uk.com/design-and-build/",{"$f":"OFFSET(A$1,A14,1)","v":"Live Line Power "},"http://www.Livelinepower.co.uk "]
[{"$f":"RANK(C15,$C$2:$C$91)","v":49},"Bouygues Energies & Services",0.54255576456712773,"http://www.bouygues-es.co.uk/connections-and-networks ",{"$f":"OFFSET(A$1,A15,1)","v":"H V Energy Systems Ltd"},"https://www.hvenergysystems.co.uk/"]
[{"$f":"RANK(C16,$C$2:$C$91)","v":39},"Green Frog Connect",0.62845118551989709,"http://www.greenfrogconnect.co.uk",{"$f":"OFFSET(A$1,A16,1)","v":"CS Cable Jointing"},"http://cscablejointing.co.uk"]
[{"$f":"RANK(C17,$C$2:$C$91)","v":18},"Modus Utilities Ltd",0.78510836572259801,"http://www.modusutilities.co.uk",{"$f":"OFFSET(A$1,A17,1)","v":"Kier"},"http://www.kier.co.uk/capabilities/support-services/highways-services/street-lighting.aspx"]
[{"$f":"RANK(C18,$C$2:$C$91)","v":36},"Cable Test",0.65828194776386739,"http://www.cabletest.co.uk/ners.php ","Bowers Projects Ltd","http://www.bowersprojects.co.uk"]
[{"$f":"RANK(C19,$C$2:$C$91)","v":5},"Kier",0.95873387381037667,"http://www.kier.co.uk/capabilities/support-services/highways-services/street-lighting.aspx","HRP Services","http://hrpservicesltd.webs.com/"]
[{"$f":"RANK(C20,$C$2:$C$91)","v":30},"Murphy Group",0.69602610113205754,"http://www.murphygroup.com","Ringway",{"$f":"HYPERLINK(OFFSET(A$1,A20,3))","v":"http://www.ringway.co.uk"}]
[{"$f":"RANK(C21,$C$2:$C$91)","v":84},"Power On Connections",0.13085360289628278,"http://www.poweronconnections.co.uk",{"$f":"OFFSET(A$1,A21,1)","v":"Naylor Power Engineering Ltd"},"https://naylorpowerengineering.co.uk/"]
[{"$f":"RANK(C22,$C$2:$C$91)","v":67},"Electrical Testing",{"$f":"RAND()","v":0.37969328938270563},"http://www.electricaltesting.co.uk",{"$f":"OFFSET(A$1,A22,1)","v":"Utility Line"},"https://utilityline.co.uk/"]
[{"$f":"RANK(C23,$C$2:$C$91)","v":51},"Harlaxton",{"$f":"RAND()","v":0.52020935496779186},"http://www.harlaxton.com",{"$f":"OFFSET(A$1,A23,1)","v":"Natta "},"http://www.natta.co.uk "]
[{"$f":"RANK(C24,$C$2:$C$91)","v":24},"GEW2",{"$f":"RAND()","v":0.74528305034700693},"http://gew2.co.uk",{"$f":"OFFSET(A$1,A24,1)","v":"Powersystems UK Ltd"},"http://www.powersystemsuk.com"]
[{"$f":"RANK(C25,$C$2:$C$91)","v":87},"Powersystems UK Ltd",{"$f":"RAND()","v":0.10121481283094225},"http://www.powersystemsuk.com",{"$f":"OFFSET(A$1,A25,1)","v":"BDS Global"},"https://bdsglobal.co.uk/services/electrical-design-consultants/"]
[{"$f":"RANK(C26,$C$2:$C$91)","v":57},"H & MV Engineering",{"$f":"RAND()","v":0.48305956780694459},"http://www.hmveng.co.uk/",{"$f":"OFFSET(A$1,A26,1)","v":"Instrumental and Control Services Limited"},{"$f":"HYPERLINK(OFFSET(A$1,A26,3))","v":"http://www.icsluk.com/icp/"}]
[{"$f":"RANK(C27,$C$2:$C$91)","v":4},"Blu-3 (UK) Ltd ",{"$f":"RAND()","v":0.96388772390598565},"http://www.blu-3.co.uk",{"$f":"OFFSET(A$1,A27,1)","v":"Nationwide Distribution Services"},{"$f":"HYPERLINK(OFFSET(A$1,A27,3))","v":"http://www.ndslimited.co.uk/index.asp"}]
[{"$f":"RANK(C28,$C$2:$C$91)","v":33},"Utility Engineering Solutions ",0.66754413515802125,"http://www.utilityengineering.co.uk",{"$f":"OFFSET(A$1,A28,1)","v":"Rock Power Connections Ltd"},{"$f":"HYPERLINK(OFFSET(A$1,A28,3))","v":"http://www.rockpowerconnections.co.uk"}]
[{"$f":"RANK(C29,$C$2:$C$91)","v":81},"Benchmark Utility Solutions",0.19050341837269713,"http://www.benchmarkutilitysolutions.co.uk/",{"$f":"OFFSET(A$1,A29,1)","v":"R & M Lighting"},{"$f":"HYPERLINK(OFFSET(A$1,A29,3))","v":"https://www.randmlighting.co.uk/ [randmlighting.co.uk]"}]
[{"$f":"RANK(C30,$C$2:$C$91)","v":32},"Skanska Utilities",0.67775727858887758,"http://www.skanska.co.uk",{"$f":"OFFSET(A$1,A30,1)","v":"Electricity Solutions"},{"$f":"HYPERLINK(OFFSET(A$1,A30,3))","v":"http://www.electricity-solutions.co.uk"}]
[{"$f":"RANK(C31,$C$2:$C$91)","v":17},"Ringway",0.7936105477580303,"http://www.ringway.co.uk",{"$f":"OFFSET(A$1,A31,1)","v":"Cable Test"},{"$f":"HYPERLINK(OFFSET(A$1,A31,3))","v":"http://www.cabletest.co.uk/ners.php "}]
[{"$f":"RANK(C32,$C$2:$C$91)","v":64},"ESM Power",0.40735194977682143,"http://www.esmpower.co.uk/",{"$f":"OFFSET(A$1,A32,1)","v":"JSM Group "},{"$f":"HYPERLINK(OFFSET(A$1,A32,3))","v":"https://www.jsmgroup.com"}]
[{"$f":"RANK(C33,$C$2:$C$91)","v":26},"Electricity Solutions",0.72816303452133202,"http://www.electricity-solutions.co.uk",{"$f":"OFFSET(A$1,A33,1)","v":"Blu-3 (UK) Ltd "},{"$f":"HYPERLINK(OFFSET(A$1,A33,3))","v":"http://www.blu-3.co.uk"}]
[{"$f":"RANK(C34,$C$2:$C$91)","v":35},"Rock Power Connections Ltd",0.66008715587233613,"http://www.rockpowerconnections.co.uk",{"$f":"OFFSET(A$1,A34,1)","v":"Pascon Ltd"},{"$f":"HYPERLINK(OFFSET(A$1,A34,3))","v":"http://www.pascon.co.uk"}]
[{"$f":"RANK(C35,$C$2:$C$91)","v":90},"Stormport Professional Services ",6.2195387029041704E-2,"http://www.stormportconnections.co.uk","GTC",{"$f":"HYPERLINK(OFFSET(A$1,A35,3))","v":"http://www.gtc-uk.co.uk/UKPN/"}]
[{"$f":"RANK(C36,$C$2:$C$91)","v":40},"Pascon Ltd",0.62685249411233179,"http://www.pascon.co.uk",{"$f":"OFFSET(A$1,A36,1)","v":"JK Jointing Services Ltd"},"http://www.jkjs.co.uk"]
[{"$f":"RANK(C37,$C$2:$C$91)","v":79},"Bowers Projects Ltd",0.20696024686032755,"http://www.bowersprojects.co.uk",{"$f":"OFFSET(A$1,A37,1)","v":"Solutions30"},{"$f":"HYPERLINK(OFFSET(A$1,A37,3))","v":"https://www.solutions30.co.uk/"}]
[{"$f":"RANK(C38,$C$2:$C$91)","v":3},"DNO Consulting Limited ",0.9827573950788413,"http://www.dnoc.co.uk",{"$f":"OFFSET(A$1,A38,1)","v":"Morrison Utility Connections"},{"$f":"HYPERLINK(OFFSET(A$1,A38,3))","v":"http://www.morrisonuc.com/"}]
[{"$f":"RANK(C39,$C$2:$C$91)","v":41},"British Power International ",0.62498312876512907,"http://www.bpienergy.com",{"$f":"OFFSET(A$1,A39,1)","v":"GMP Contracting Services Ltd "},{"$f":"HYPERLINK(OFFSET(A$1,A39,3))","v":"http://www.gmpcsltd.com"}]
[{"$f":"RANK(C40,$C$2:$C$91)","v":76},"CS Cable Jointing",0.23363037693984867,"http://cscablejointing.co.uk",{"$f":"OFFSET(A$1,A40,1)","v":"UK Networks Services"},{"$f":"HYPERLINK(OFFSET(A$1,A40,3))","v":"https://www.uknetworksservices.co.uk/"}]
[{"$f":"RANK(C41,$C$2:$C$91)","v":45},"JK Jointing Services Ltd",0.58063650021069091,"http://www.jkjs.co.uk","PowerTek Utilities Ltd ","https://www.powertekutilities.com"]
[{"$f":"RANK(C42,$C$2:$C$91)","v":50},"GMP Contracting Services Ltd ",0.53907318050239861,"http://www.gmpcsltd.com","Dunamis Group ","http://www.dunamisgroup.co.uk"]
[{"$f":"RANK(C43,$C$2:$C$91)","v":16},"High Voltage Systems & Services",0.80109100163302938,"http://www.hvss.uk.com",{"$f":"OFFSET(A$1,A43,1)","v":"Modus Utilities Ltd"},{"$f":"HYPERLINK(OFFSET(A$1,A43,3))","v":"http://www.modusutilities.co.uk"}]
[{"$f":"RANK(C44,$C$2:$C$91)","v":21},"Engineered Systems (Electrical) Ltd",0.7737233357461748,"http://eselimited.co.uk/",{"$f":"OFFSET(A$1,A44,1)","v":"Electrical Testing"},{"$f":"HYPERLINK(OFFSET(A$1,A44,3))","v":"http://www.electricaltesting.co.uk"}]
[{"$f":"RANK(C45,$C$2:$C$91)","v":25},"High Voltage Engineering Services Ltd",0.73648525270853982,"https://www.hves.org.uk",{"$f":"OFFSET(A$1,A45,1)","v":"H & MV Engineering"},{"$f":"HYPERLINK(OFFSET(A$1,A45,3))","v":"http://www.hmveng.co.uk/"}]
[{"$f":"RANK(C46,$C$2:$C$91)","v":83},"PowerTek Utilities Ltd ",0.18068147973537008,"https://www.powertekutilities.com",{"$f":"OFFSET(A$1,A46,1)","v":"Fortis Foundations Civil Engineering Ltd"},{"$f":"HYPERLINK(OFFSET(A$1,A46,3))","v":"https://fortisfoundations.com/"}]
[{"$f":"RANK(C47,$C$2:$C$91)","v":61},"MES Power Engineering",0.45505475080215585,"http://www.mes-power.com","SmOp ","http://www.smopct.com"]
[{"$f":"RANK(C48,$C$2:$C$91)","v":37},"Connect It Utility Services ",0.6464764203031933,"http://www.cius.co.uk","DNO Consulting Limited ","http://www.dnoc.co.uk"]
[{"$f":"RANK(C49,$C$2:$C$91)","v":53},"GFL Construction Ltd ",0.50720162263923629,"http://www.gfl.uk.com","Sinewave Energy Solutions","http://www.sineenergy.co.uk"]
[{"$f":"RANK(C50,$C$2:$C$91)","v":44},"H V Energy Systems Ltd",0.58689262251580243,"https://www.hvenergysystems.co.uk/","High Voltage Engineering Services Ltd","https://www.hves.org.uk"]
[{"$f":"RANK(C51,$C$2:$C$91)","v":34},"Dunamis Group ",0.66045016673138479,"http://www.dunamisgroup.co.uk","Stormport Professional Services ","http://www.stormportconnections.co.uk"]
[{"$f":"RANK(C52,$C$2:$C$91)","v":28},"Natta ",0.70798842701567433,"http://www.natta.co.uk ","Benchmark Utility Solutions","http://www.benchmarkutilitysolutions.co.uk/"]
[{"$f":"RANK(C53,$C$2:$C$91)","v":38},"Ethical Power Connections Ltd",0.63575618522496058,"https://ethical-power.com/hv-connections/","British Power International ","http://www.bpienergy.com"]
[{"$f":"RANK(C54,$C$2:$C$91)","v":23},"Sinewave Energy Solutions",0.76119227261822842,"http://www.sineenergy.co.uk","GEW2","http://gew2.co.uk"]
[{"$f":"RANK(C55,$C$2:$C$91)","v":15},"Live Line Power ",0.8325161350264465,"http://www.Livelinepower.co.uk ","Green Frog Connect","http://www.greenfrogconnect.co.uk"]
[{"$f":"RANK(C56,$C$2:$C$91)","v":75},"The Independent Connection Provider ",0.25170265893196486,"http://www.TheICP.co.uk","Power Service Installation","https://powersi.co.uk/"]
[{"$f":"RANK(C57,$C$2:$C$91)","v":58},"Specialist Power Engineering Contracts",0.47672606752849855,"https://www.spec-ltd.com/services/grid-connections/","eSmart Networks Limited","http://www.esmartnetworks.co.uk"]
[{"$f":"RANK(C58,$C$2:$C$91)","v":77},"Instrumental and Control Services Limited",0.23270284310923706,"http://www.icsluk.com/icp/","Erith Connect","https://erithconnect.com/"]
[{"$f":"RANK(C59,$C$2:$C$91)","v":80},"eSmart Networks Limited",0.19193788185884508,"http://www.esmartnetworks.co.uk","SUIR Engineering","https://suireng.ie/"]
[{"$f":"RANK(C60,$C$2:$C$91)","v":65},"Land and Power Ltd",0.40187110853823893,"http://www.landandpower.co.uk ","ICP Design Solutions Ltd","http://www.icpdesign.com"]
[{"$f":"RANK(C61,$C$2:$C$91)","v":78},"AIS Utilities",0.22580515607333651,"http://www.aisutilities.co.uk","Excalon Energy Ltd","https://www.excalonenergy.com/"]
[{"$f":"RANK(C62,$C$2:$C$91)","v":12},"SmOp ",0.87532736388889154,"http://www.smopct.com","Matrix Networks","http://www.matrixnetworks.co.uk/"]
[{"$f":"RANK(C63,$C$2:$C$91)","v":10},"UK Power Networks Services (Commercial) Ltd",0.90324007495989633,"https://www.ukpowernetworksservices.co.uk/solutions/how-can-i-design-and-build-my-network/","Dragon Infrastructure Solutions","http://www.dragonis.co.uk/"]
[{"$f":"RANK(C64,$C$2:$C$91)","v":7},"Integrum Power Engineering",0.93113608213035903,"https://integrumpower.co.uk/","UK Power Solutions ","http://www.ukpowersolutions.co.uk/"]
[{"$f":"RANK(C65,$C$2:$C$91)","v":68},"JSM Group ",0.37527216569288568,"https://www.jsmgroup.com","UPC Choice","https://ucpchoice.co.uk/"]
[{"$f":"RANK(C66,$C$2:$C$91)","v":22},"ICP Design Solutions Ltd",0.76856765428133744,"http://www.icpdesign.com","Harlaxton","http://www.harlaxton.com"]
[{"$f":"RANK(C67,$C$2:$C$91)","v":85},"Clarke Telecom",{"$f":"RAND()","v":0.12902756687009187},"https://www.clarke-telecom.com/","PPS Power Engineering","https://psspower.co.uk/power-connections/"]
[{"$f":"RANK(C68,$C$2:$C$91)","v":62},"Utility Line",0.42349276483823151,"https://utilityline.co.uk/","UK Power Networks Services (Commercial) Ltd","https://www.ukpowernetworksservices.co.uk/solutions/how-can-i-design-and-build-my-network/"]
[{"$f":"RANK(C69,$C$2:$C$91)","v":66},"UPC Choice",0.38983508285247959,"https://ucpchoice.co.uk/","Clarke Telecom","https://www.clarke-telecom.com/"]
[{"$f":"RANK(C70,$C$2:$C$91)","v":11},"Oakes Power Services",0.897020149296475,"https://oakespowerservices.co.uk/","Power Jointing and Distribution Services","http://powerjointing.co.uk/ukpn.php"]
[{"$f":"RANK(C71,$C$2:$C$91)","v":47},"Fusion Utility Networks",0.56343755666425688,"https://www.fusionutilitynetworks.co.uk/","Connect It Utility Services ","http://www.cius.co.uk"]
[{"$f":"RANK(C72,$C$2:$C$91)","v":2},"Linbrooke Services Ltd",0.98357065817377687,"https://linbrooke.co.uk/","R&D Network Design","http://www.rdnetworkdesign.co.uk/"]
[{"$f":"RANK(C73,$C$2:$C$91)","v":56},"L J Heffernan Utilities Ltd",0.48839159152705702,"https://heffernanutilities.com/","Specialist Power Engineering Contracts","https://www.spec-ltd.com/services/grid-connections/"]
[{"$f":"RANK(C74,$C$2:$C$91)","v":8},"Serconnect Ltd",{"$f":"RAND()","v":0.92333356019134905},"https://serconnect.co.uk/","Triconnex","http://www.triconnex.co.uk/about-us"]
[{"$f":"RANK(C75,$C$2:$C$91)","v":19},"SOS Electricals and Services Ltd",0.78243746262004543,"https://sossynergy.co.uk/","Murphy Group","http://www.murphygroup.com"]
[{"$f":"RANK(C76,$C$2:$C$91)","v":71},"Power Service Installation",0.3331439276817354,"https://powersi.co.uk/","Linbrooke Services Ltd","https://linbrooke.co.uk/"]
[{"$f":"RANK(C77,$C$2:$C$91)","v":1},"UK Networks Services",0.98555368899470852,"https://www.uknetworksservices.co.uk/","PN Daly","http://www.pndaly.co.uk/"]
[{"$f":"RANK(C78,$C$2:$C$91)","v":72},"Erith Connect",0.32772573088447654,"https://erithconnect.com/","L J Heffernan Utilities Ltd","https://heffernanutilities.com/"]
[{"$f":"RANK(C79,$C$2:$C$91)","v":6},"Excalon Energy Ltd",0.94947870437717541,"https://www.excalonenergy.com/","Freedom Connections","http://www.freedom-group.co.uk/services/connections"]
[{"$f":"RANK(C80,$C$2:$C$91)","v":29},"Solutions30",{"$f":"RAND()","v":0.69630830276591871},"https://www.solutions30.co.uk/","Skanska Utilities","http://www.skanska.co.uk"]
[{"$f":"RANK(C81,$C$2:$C$91)","v":9},"SUIR Engineering",0.91681797802226583,"https://suireng.ie/","Metricab Power Engineering","http://metricab.co.uk/"]
[{"$f":"RANK(C82,$C$2:$C$91)","v":43},"R & M Lighting",0.60498925649126745,"https://www.randmlighting.co.uk/ [randmlighting.co.uk]","Engineered Systems (Electrical) Ltd","http://eselimited.co.uk/"]
[{"$f":"RANK(C83,$C$2:$C$91)","v":13},"Cable Connections",0.85849148658260122,"https://cable-connections.co.uk [cable-connections.co.uk]","Energetics Networked Energy","http://www.energetics-uk.com/design-and-build/"]
[{"$f":"RANK(C84,$C$2:$C$91)","v":59},"Fortis Foundations Civil Engineering Ltd",0.47141588192498307,"https://fortisfoundations.com/","Land and Power Ltd","http://www.landandpower.co.uk "]
[{"$f":"RANK(C85,$C$2:$C$91)","v":73},"Naylor Power Engineering Ltd",0.31327775211104281,"https://naylorpowerengineering.co.uk/","Serconnect Ltd","https://serconnect.co.uk/"]
[{"$f":"RANK(C86,$C$2:$C$91)","v":74},"PPS Power Engineering",{"$f":"RAND()","v":0.25900925556223553},"https://psspower.co.uk/power-connections/","SOS Electricals and Services Ltd","https://sossynergy.co.uk/"]
[{"$f":"RANK(C87,$C$2:$C$91)","v":63},"DP Optics Ltd",{"$f":"RAND()","v":0.41263306874637251},"https://dpogroup.co.uk/","Integrum Power Engineering","https://integrumpower.co.uk/"]
[{"$f":"RANK(C88,$C$2:$C$91)","v":52},"BDS Global",{"$f":"RAND()","v":0.51007345211035915},"https://bdsglobal.co.uk/services/electrical-design-consultants/","Ethical Power Connections Ltd","https://ethical-power.com/hv-connections/"]
[{"$f":"RANK(C89,$C$2:$C$91)","v":69},"Falco Construction Ltd",0.36668569729653988,"https://www.falcoconstruction.co.uk/","Oakes Power Services","https://oakespowerservices.co.uk/"]
[{"$f":"RANK(C90,$C$2:$C$91)","v":31},"Energi Solutions Limited",{"$f":"RAND()","v":0.6914441568314269},"https://energisolutions.co.uk/","ESM Power","http://www.esmpower.co.uk/"]
[{"$f":"RANK(C91,$C$2:$C$91)","v":88},"GTC",8.143759158862629E-2,"http://www.gtc-uk.co.uk/UKPN/","Falco Construction Ltd",{"$f":"HYPERLINK(OFFSET(A$1,A91,3))","v":"https://www.falcoconstruction.co.uk/"}]
[]
[null,null,null,null,"PLEASE CLICK HERE TO RETURN TO THE FRONT PAGE"]